[Event "Delancey UK Schools 2019 U18"]
[Site "Daventry"]
[Date "2019.09.24"]
[Round "1.1"]
[White "Brown, Tom"]
[Black "Kalavannan, Koby"]
[Result "0-1"]
[ECO "D02"]
[WhiteElo "2005"]
[BlackElo "2324"]
[Annotator "ChessBase"]
[PlyCount "74"]
[EventDate "2019.09.24"]
[EventCountry "GBR"]
[SourceTitle "playchess.com"]
[Source "ChessBase"]
[SourceQuality "1"]
[TimeControl "40/5400+30:1800+30"]

1. d4 {[%emt 1:10:12]} Nf6 {[%emt 1:10:11]} 2. Nf3 {[%emt 0:00:21]} g6 {[%emt 0:00:21]} 3. Nbd2 {[%emt 0:00:22]} d5 {[%emt 0:00:25]} 4. e3 {[%emt 0:00:22]} Bg7 {[%emt 0:00:26]} 5. b4 {[%emt 0:00:23]} a5 {[%emt 0:00:32]} 6. b5 {[%emt 0:00:28]} c5 {[%emt 0:00:30]} 7. bxc6 {[%emt 0:01:29]} bxc6 {[%emt 0:00:21]} 8. c4 {[%emt 0:00:57]} O-O {[%emt 0:01:19]} 9. Be2 {[%emt 0:00:44]} Nbd7 {[%emt 0:04:56]} 10. Ba3 {[%emt 0:02:02]} Re8 {[%emt 0:00:29]} 11. O-O {[%emt 0:02:17]} Ba6 {[%emt 0:02:23]} 12. Rb1 {[%emt 0:01:58]} e5 {[%emt 0:01:28]} 13. dxe5 {[%emt 0:02:41]} Nxe5 {[%emt 0:00:20]} 14. cxd5 {[%emt 0:01:45]} Nxd5 {[%emt 0:01:18]} 15. Bxa6 {[%emt 0:05:58]} Nc3 {[%emt 0:00:52]} 16. Qc2 {[%emt 0:01:11]} Nxb1 {[%emt 0:01:04]} 17. Rxb1 {[%emt 0:00:58]} Rxa6 {[%emt 0:01:36]} 18. Nxe5 {[%emt 0:01:03]} Bxe5 {[%emt 0:00:39]} 19. Ne4 {[%emt 0:00:57]} Bxh2+ {[%emt 0:00:56]} 20. Kf1 {[%emt 0:01:47]} Be5 {[%emt 0:00:52]} 21. Nc5 {[%emt 0:01:18]} Ra7 {[%emt 0:01:48]} 22. Rd1 {[%emt 0:00:32]} Qc8 {[%emt 0:03:25]} 23. Bb2 {[%emt 0:00:59]} Bxb2 {[%emt 0:00:56]} 24. Qxb2 {[%emt 0:00:21]} Qg4 {[%emt 0:00:21]} 25. Rd4 {[%emt 0:00:42]} Qf5 {[%emt 0:00:52]} 26. Ne4 {[%emt 0:00:44]} Rf8 {[%emt 0:02:28]} 27. Nd6 {[%emt 0:00:39]} Qe5 {[%emt 0:00:38]} 28. Qb6 {[%emt 0:00:28]} Qe7 {[%emt 0:00:44]} 29. Qxc6 {[%emt 0:00:26]} Rc7 {[%emt 0:00:21]} 30. Qd5 {[%emt 0:00:32]} Rc1+ {[%emt 0:00:24]} 31. Ke2 {[%emt 0:00:29]} Qe6 {[%emt 0:00:40]} 32. Qxa5 {[%emt 0:00:43]} Rc2+ {[%emt 0:00:29]} 33. Kf1 {[%emt 0:00:29]} Rxa2 {[%emt 0:00:28]} 34. Qc3 {[%emt 0:00:29]} Ra6 {[%emt 0:01:07]} 35. Ne4 {[%emt 0:00:28]} Rc8 {[%emt 0:00:26]} 36. Qb2 {[%emt 0:00:34]} Ra2 {[%emt 0:00:37]} 37. Qb1 {[%emt 0:00:30]} Qa6+ {[%emt 0:00:27]} 0-1

[Event "Delancey UK Schools 2019 U18"]
[Site "Daventry"]
[Date "2019.09.24"]
[Round "1.2"]
[White "Willow, Jonah B"]
[Black "Somton, Anita"]
[Result "1-0"]
[ECO "B12"]
[WhiteElo "2327"]
[BlackElo "1831"]
[Annotator "ChessBase"]
[PlyCount "43"]
[EventDate "2019.09.24"]
[EventCountry "GBR"]
[SourceTitle "playchess.com"]
[Source "ChessBase"]
[SourceQuality "1"]
[TimeControl "40/5400+30:1800+30"]

1. e4 {[%emt 1:12:14]} c6 {[%emt 1:10:18]} 2. d4 {[%emt 0:00:31]} d5 {[%emt 0:00:26]} 3. e5 {[%emt 0:00:48]} Bf5 {[%emt 0:00:30]} 4. h4 {[%emt 0:00:23]} h5 {[%emt 0:00:47]} 5. c4 {[%emt 0:00:24]} e6 {[%emt 0:01:38]} 6. Nc3 {[%emt 0:01:02]} Ne7 {[%emt 0:01:38]} 7. Nge2 {[%emt 0:00:25]} Nd7 {[%emt 0:01:14]} 8. Ng3 {[%emt 0:00:53]} Bg4 {[%emt 0:01:51]} 9. f3 {[%emt 0:00:59]} Bf5 {[%emt 0:00:28]} 10. cxd5 {[%emt 0:00:22]} exd5 {[%emt 0:02:48]} 11. Bg5 {[%emt 0:01:05]} Be6 {[%emt 0:01:10]} 12. Qd2 {[%emt 0:02:58]} Qb6 {[%emt 0:02:46]} 13. Be3 {[%emt 0:09:18]} g6 {[%emt 0:02:44]} 14. Be2 {[%emt 0:01:15]} Bg7 {[%emt 0:01:28]} 15. O-O {[%emt 0:00:43]} O-O-O {[%emt 0:01:34]} 16. b4 {[%emt 0:01:13]} Nf5 {[%emt 0:01:41]} 17. Nxf5 {[%emt 0:00:24]} Bxf5 {[%emt 0:00:30]} 18. b5 {[%emt 0:00:43]} Nxe5 {[%emt 0:01:40]} 19. dxe5 {[%emt 0:00:32]} d4 {[%emt 0:00:27]} 20. Na4 {[%emt 0:00:21]} Qc7 {[%emt 0:00:40]} 21. Bg5 {[%emt 0:00:41]} Rd5 {[%emt 0:00:52]} 22. Bc4 {[%emt 0:00:39]} 1-0

[Event "Delancey UK Schools 2019 U18"]
[Site "Daventry"]
[Date "2019.09.24"]
[Round "1.3"]
[White "Stubbs, Oliver"]
[Black "Golding, Alex"]
[Result "1-0"]
[ECO "A48"]
[WhiteElo "1835"]
[BlackElo "2306"]
[Annotator "ChessBase"]
[PlyCount "110"]
[EventDate "2019.09.24"]
[EventCountry "GBR"]
[SourceTitle "playchess.com"]
[Source "ChessBase"]
[SourceQuality "1"]
[TimeControl "40/5400+30:1800+30"]

1. d4 {[%emt 1:10:12]} Nf6 {[%emt 1:10:18]} 2. Bf4 {[%emt 0:00:22]} g6 {[%emt 0:00:25]} 3. Nd2 {[%emt 0:00:21]} d5 {[%emt 0:00:25]} 4. e3 {[%emt 0:00:21]} Bg7 {[%emt 0:00:28]} 5. Ngf3 {[%emt 0:00:32]} O-O {[%emt 0:00:34]} 6. h3 {[%emt 0:00:22]} c5 {[%emt 0:00:21]} 7. c3 {[%emt 0:00:21]} b6 {[%emt 0:00:23]} 8. Bd3 {[%emt 0:01:03]} Bb7 {[%emt 0:00:22]} 9. O-O {[%emt 0:00:37]} Nc6 {[%emt 0:00:28]} 10. Qe2 {[%emt 0:00:50]} Nd7 {[%emt 0:00:20]} 11. Ba6 {[%emt 0:01:55]} Qc8 {[%emt 0:01:21]} 12. Bxb7 {[%emt 0:00:30]} Qxb7 {[%emt 0:00:16]} 13. e4 {[%emt 0:01:58]} dxe4 {[%emt 0:00:30]} 14. Qxe4 {[%emt 0:01:33]} Nf6 {[%emt 0:00:21]} 15. Qe2 cxd4 {[%emt 0:00:22]} 16. cxd4 {[%emt 0:03:48]} Rfd8 {[%emt 0:00:32]} 17. Be5 {[%emt 0:01:06]} Ne8 {[%emt 0:03:17]} 18. Rfe1 {[%emt 0:01:57]} e6 {[%emt 0:02:24]} 19. Rad1 {[%emt 0:01:34]} Rd5 {[%emt 0:00:37]} 20. Bxg7 {[%emt 0:00:38]} Kxg7 {[%emt 0:00:27]} 21. Nc4 {[%emt 0:00:25]} Rad8 {[%emt 0:00:57]} 22. Ne3 Nxd4 {[%emt 0:00:54]} 23. Nxd4 {[%emt 0:02:01]} Rxd4 {[%emt 0:00:23]} 24. Rxd4 {[%emt 0:00:21]} Rxd4 {[%emt 0:00:28]} 25. Nf5+ {[%emt 0:00:11]} gxf5 {[%emt 0:01:23]} 26. Qe5+ {[%emt 0:00:31]} Nf6 {[%emt 0:01:13]} 27. Qxd4 {[%emt 0:00:21]} Qd5 {[%emt 0:00:22]} 28. Qc3 {[%emt 0:01:57]} h6 {[%emt 0:01:13]} 29. Re3 {[%emt 0:01:12]} f4 {[%emt 0:00:23]} 30. Rf3 {[%emt 0:01:49]} e5 {[%emt 0:00:26]} 31. Qb3 {[%emt 0:01:21]} Qd4 {[%emt 0:00:50]} 32. Rd3 {[%emt 0:00:30]} Qe4 {[%emt 0:00:29]} 33. Qd1 {[%emt 0:00:59]} Qf5 {[%emt 0:01:06]} 34. Ra3 {[%emt 0:00:55]} e4 {[%emt 0:00:59]} 35. Rxa7 {[%emt 0:01:25]} f3 {[%emt 0:00:22]} 36. Qb3 {[%emt 0:01:07]} Nd5 {[%emt 0:01:11]} 37. g4 {[%emt 0:01:17]} Qg5 {[%emt 0:00:58]} 38. Qc4 {[%emt 0:01:18]} Qf4 {[%emt 0:07:42]} 39. Rd7 {[%emt 0:01:03]} Nb4 {[%emt 0:01:23]} 40. Qd4+ {[%emt 0:00:32]} Kh7 {[%emt 0:00:52]} 41. Rd8 {[%emt 0:30:35]} Qc1+ {[%emt 0:30:26]} 42. Kh2 {[%emt 0:00:30]} Qf4+ {[%emt 0:00:22]} 43. Kg1 {[%emt 0:00:21]} Qc1+ {[%emt 0:00:26]} 44. Kh2 {[%emt 0:00:46]} Qf4+ {[%emt 0:00:30]} 45. Kg1 {[%emt 0:00:21]} Qc1+ {[%emt 0:00:35]} 46. Qd1 {[%emt 0:00:21]} Qxb2 {[%emt 0:00:37]} 47. Qd4 {[%emt 0:00:53]} Qc1+ {[%emt 0:00:29]} 48. Kh2 {[%emt 0:00:25]} Qf4+ {[%emt 0:00:24]} 49. Kg1 {[%emt 0:00:21]} Qc1+ {[%emt 0:00:29]} 50. Kh2 {[%emt 0:00:28]} Qf4+ {[%emt 0:00:22]} 51. Kg1 {[%emt 0:00:21]} Qc1+ {[%emt 0:00:21]} 52. Qd1 {[%emt 0:00:22]} Nxa2 {[%emt 0:00:56]} 53. Qxc1 {[%emt 0:00:38]} Nxc1 {[%emt 0:00:21]} 54. Rb8 {[%emt 0:00:36]} Ne2+ {[%emt 0:01:19]} 55. Kh2 {[%emt 0:00:22]} Nf4 {[%emt 0:01:39]} 1-0

[Event "Delancey UK Schools 2019 U18"]
[Site "Daventry"]
[Date "2019.09.24"]
[Round "1.4"]
[White "Stoyanov, Viktor"]
[Black "Ye, Kevin"]
[Result "1-0"]
[ECO "E05"]
[WhiteElo "2272"]
[BlackElo "1758"]
[Annotator "ChessBase"]
[PlyCount "62"]
[EventDate "2019.09.24"]
[EventCountry "GBR"]
[SourceTitle "playchess.com"]
[Source "ChessBase"]
[SourceQuality "1"]
[TimeControl "40/5400+30:1800+30"]

1. d4 {[%emt 1:03:02]} d5 {[%emt 0:00:04]} 2. Nf3 {[%emt 0:00:04]} Nf6 {[%emt 0:00:02]} 3. c4 {[%emt 0:00:02]} e6 {[%emt 0:00:02]} 4. g3 {[%emt 0:00:02]} Be7 {[%emt 0:00:04]} 5. Bg2 {[%emt 0:00:01]} O-O {[%emt 0:00:03]} 6. O-O {[%emt 0:00:02]} dxc4 {[%emt 0:00:02]} 7. Qc2 {[%emt 0:00:06]} a6 {[%emt 0:00:02]} 8. a4 {[%emt 0:00:02]} Bd7 {[%emt 0:00:01]} 9. Rd1 {[%emt 0:00:04]} Bc6 {[%emt 0:01:37]} 10. Nc3 {[%emt 0:00:08]} a5 {[%emt 0:02:31]} 11. e4 {[%emt 0:00:24]} Na6 {[%emt 0:00:14]} 12. Ne5 {[%emt 0:00:04]} Nb4 {[%emt 0:01:17]} 13. Qe2 {[%emt 0:00:12]} Nd7 {[%emt 0:01:28]} 14. Nxc4 {[%emt 0:02:09]} Nb6 {[%emt 0:01:18]} 15. Nxb6 {[%emt 0:00:38]} cxb6 {[%emt 0:00:02]} 16. d5 {[%emt 0:01:46]} exd5 {[%emt 0:02:37]} 17. exd5 {[%emt 0:12:42]} Bd7 {[%emt 1:17:24]} 18. d6 {[%emt 0:00:44]} Bf6 {[%emt 0:00:33]} 19. Bxb7 {[%emt 0:00:20]} Rb8 {[%emt 0:00:23]} 20. Bg2 {[%emt 0:00:08]} Re8 {[%emt 0:00:05]} 21. Be3 {[%emt 0:00:19]} Rc8 {[%emt 0:03:20]} 22. Rac1 {[%emt 0:01:37]} Bc6 {[%emt 0:00:35]} 23. Bxc6 {[%emt 0:00:07]} Rxc6 {[%emt 0:00:20]} 24. Qd2 {[%emt 0:02:11]} Re6 {[%emt 0:01:56]} 25. Nb5 {[%emt 0:00:10]} Qd7 {[%emt 0:01:00]} 26. Rxc6 {[%emt 0:00:05]} Nxc6 {[%emt 0:00:49]} 27. Bxb6 {[%emt 0:02:02]} Qb7 {[%emt 0:01:02]} 28. Be3 {[%emt 0:00:07]} Ne5 {[%emt 0:00:42]} 29. Qd5 {[%emt 0:00:01]} Qd7 30. Nc7 {[%emt 0:05:16]} Nf3+ {[%emt 0:05:13]} 31. Qxf3 {[%emt 0:00:04]} Rxd6 1-0

[Event "Delancey UK Schools 2019 U18"]
[Site "Daventry"]
[Date "2019.09.24"]
[Round "1.5"]
[White "Guha, Chirag"]
[Black "Boswell, Jacob Connor"]
[Result "0-1"]
[ECO "D02"]
[WhiteElo "1769"]
[BlackElo "2000"]
[Annotator "NA"]
[PlyCount "94"]
[EventDate "2019.09.24"]
[EventCountry "GBR"]
[SourceTitle "playchess.com"]
[Source "ChessBase"]
[SourceQuality "1"]
[TimeControl "40/5400+30:1800+30"]

1. d4 {[%emt 0:00:02]} b6 2. Nf3 {[%emt 1:11:11]} Bb7 {[%emt 1:10:30]} 3. Nbd2 {[%emt 0:01:16]} e6 {[%emt 0:00:22]} 4. g3 {[%emt 0:00:22]} Nf6 {[%emt 0:00:21]} 5. Bg2 {[%emt 0:00:26]} d5 {[%emt 0:00:37]} 6. c4 {[%emt 0:00:39]} Nbd7 {[%emt 0:00:56]} 7. O-O {[%emt 0:00:28]} Bd6 {[%emt 0:00:58]} 8. b3 {[%emt 0:00:33]} O-O {[%emt 0:00:40]} 9. Bb2 {[%emt 0:00:21]} c5 {[%emt 0:02:02]} 10. Rc1 {[%emt 0:00:52]} Qe7 {[%emt 0:00:55]} 11. e3 {[%emt 0:01:12]} Rfd8 {[%emt 0:01:12]} 12. Qe2 {[%emt 0:01:41]} e5 {[%emt 0:04:42]} 13. dxe5 {[%emt 0:01:03]} Nxe5 {[%emt 0:00:27]} 14. Nxe5 {[%emt 0:01:50]} Bxe5 {[%emt 0:00:22]} 15. Bxe5 {[%emt 0:00:59]} Qxe5 {[%emt 0:00:21]} 16. cxd5 {[%emt 0:00:39]} Nxd5 {[%emt 0:01:59]} 17. Nc4 {[%emt 0:00:45]} Qe7 {[%emt 0:00:51]} 18. Rfd1 {[%emt 0:01:38]} Rd7 {[%emt 0:02:44]} 19. Rd3 {[%emt 0:01:51]} Rad8 {[%emt 0:00:28]} 20. a3 {[%emt 0:02:10]} Nf4 {[%emt 0:01:14]} 21. gxf4 {[%emt 0:00:54]} Rxd3 {[%emt 0:00:22]} 22. Ne5 {[%emt 0:02:22]} Rd2 {[%emt 0:01:05]} 23. Qc4 {[%emt 0:00:24]} Rd1+ {[%emt 0:02:57]} 24. Rxd1 {[%emt 0:00:40]} Rxd1+ {[%emt 0:00:21]} 25. Bf1 {[%emt 0:00:22]} Qe6 {[%emt 0:01:11]} 26. Qe2 {[%emt 0:04:01]} Qd5 {[%emt 0:01:20]} 27. f3 {[%emt 0:00:21]} Qd2 {[%emt 0:01:17]} 28. Qxd2 {[%emt 0:00:53]} Rxd2 {[%emt 0:00:21]} 29. Bc4 {[%emt 0:00:21]} Bd5 {[%emt 0:00:22]} 30. Bxd5 {[%emt 0:01:00]} Rxd5 {[%emt 0:00:22]} 31. Nc6 {[%emt 0:00:22]} Rd3 {[%emt 0:00:35]} 32. Nxa7 {[%emt 0:00:48]} Rxe3 {[%emt 0:00:47]} 33. Kf2 {[%emt 0:00:28]} Rxb3 {[%emt 0:00:23]} 34. Nc8 {[%emt 0:00:27]} Kf8 {[%emt 0:00:52]} 35. a4 {[%emt 0:00:26]} Ke8 {[%emt 0:00:24]} 36. Nd6+ {[%emt 0:00:41]} Ke7 {[%emt 0:00:21]} 37. Nf5+ {[%emt 0:00:22]} Kf6 {[%emt 0:00:27]} 38. Ne3 {[%emt 0:00:21]} Rb2+ {[%emt 0:00:49]} 39. Kg3 {[%emt 0:00:42]} g6 {[%emt 0:00:26]} 40. Nc4 {[%emt 0:00:56]} Rb4 {[%emt 0:00:24]} 41. Ne3 {[%emt 0:30:33]} Rxa4 {[%emt 0:30:23]} 42. Nd5+ {[%emt 0:00:21]} Ke6 {[%emt 0:00:53]} 43. Nxb6 {[%emt 0:00:22]} Rd4 {[%emt 0:00:22]} 44. Kf2 {[%emt 0:00:31]} Kd6 {[%emt 0:00:26]} 45. Nc8+ {[%emt 0:01:01]} Kd7 {[%emt 0:00:29]} 46. Nb6+ {[%emt 0:00:23]} Kc7 {[%emt 0:00:24]} 47. Na8+ {[%emt 0:00:23]} Kb7 {[%emt 0:00:03]} 0-1

[Event "Delancey UK Schools 2019 U18"]
[Site "Daventry"]
[Date "2019.09.24"]
[Round "1.6"]
[White "Klingher, Dominic"]
[Black "Nayak, Raghav"]
[Result "1-0"]
[ECO "C27"]
[WhiteElo "2071"]
[BlackElo "1914"]
[Annotator "NA"]
[PlyCount "69"]
[EventDate "2019.09.24"]
[EventCountry "GBR"]
[SourceTitle "playchess.com"]
[Source "ChessBase"]
[SourceQuality "1"]
[TimeControl "40/5400+30:1800+30"]

1. e4 {[%emt 1:10:22]} e5 {[%emt 1:10:15]} 2. Nc3 {[%emt 0:00:21]} Nf6 {[%emt 0:00:25]} 3. Bc4 {[%emt 0:00:21]} Nxe4 {[%emt 0:00:31]} 4. Qh5 {[%emt 0:01:23]} Nd6 {[%emt 0:00:33]} 5. Bb3 {[%emt 0:00:31]} Nc6 {[%emt 0:00:31]} 6. Nb5 {[%emt 0:00:37]} g6 {[%emt 0:00:41]} 7. Qf3 {[%emt 0:00:24]} f5 {[%emt 0:00:33]} 8. Qd5 {[%emt 0:00:28]} Qe7 {[%emt 0:00:33]} 9. Nxc7+ {[%emt 0:00:37]} Kd8 {[%emt 0:00:24]} 10. Nxa8 {[%emt 0:00:28]} b6 {[%emt 0:01:03]} 11. Nxb6 {[%emt 0:06:12]} axb6 {[%emt 0:00:22]} 12. d3 {[%emt 0:00:34]} Bb7 {[%emt 0:01:59]} 13. h4 {[%emt 0:00:55]} h6 {[%emt 0:03:11]} 14. Qf3 {[%emt 0:01:22]} Bg7 {[%emt 0:03:21]} 15. Qg3 {[%emt 0:05:09]} e4 {[%emt 0:01:18]} 16. Be3 {[%emt 0:01:38]} exd3 {[%emt 0:01:57]} 17. O-O-O {[%emt 0:00:38]} Nd4 {[%emt 0:01:53]} 18. Rxd3 {[%emt 0:00:55]} Ba6 {[%emt 0:02:44]} 19. Rd1 {[%emt 0:01:15]} Nxb3+ {[%emt 0:03:06]} 20. axb3 {[%emt 0:00:26]} Be5 {[%emt 0:02:51]} 21. Bxb6+ {[%emt 0:01:03]} Kc8 {[%emt 0:00:24]} 22. Qxg6 {[%emt 0:01:39]} Ne4 {[%emt 0:01:41]} 23. Bd4 {[%emt 0:01:03]} Bb7 {[%emt 0:00:57]} 24. Bxe5 {[%emt 0:01:22]} Qxe5 {[%emt 0:00:21]} 25. Nf3 {[%emt 0:00:32]} Qc5 {[%emt 0:00:33]} 26. Qg7 {[%emt 0:00:56]} Rd8 {[%emt 0:00:26]} 27. Rd4 {[%emt 0:00:32]} d5 {[%emt 0:00:41]} 28. Qe5 {[%emt 0:00:56]} Nd6 {[%emt 0:00:32]} 29. Rhd1 {[%emt 0:00:45]} Re8 {[%emt 0:00:24]} 30. Qf4 {[%emt 0:00:39]} Nb5 {[%emt 0:00:27]} 31. Qxf5+ {[%emt 0:00:33]} Kb8 {[%emt 0:00:24]} 32. Rxd5 {[%emt 0:00:33]} Bxd5 {[%emt 0:00:26]} 33. Qxd5 {[%emt 0:00:23]} Qb6 {[%emt 0:00:43]} 34. Ne5 {[%emt 0:00:29]} Rc8 {[%emt 0:00:29]} 35. Nd7+ {[%emt 0:00:23]} 1-0

[Event "Delancey UK Schools 2019 U18"]
[Site "Daventry"]
[Date "2019.09.24"]
[Round "1.7"]
[White "Isaksen, Peter A"]
[Black "Grieve, Harry"]
[Result "0-1"]
[ECO "B07"]
[WhiteElo "1858"]
[BlackElo "2277"]
[Annotator "ChessBase"]
[PlyCount "46"]
[EventDate "2019.09.24"]
[EventCountry "GBR"]
[SourceTitle "playchess.com"]
[Source "ChessBase"]
[SourceQuality "1"]
[TimeControl "40/5400+30:1800+30"]

1. e4 {[%emt 1:10:11]} d6 {[%emt 1:10:12]} 2. d4 {[%emt 0:00:24]} Nf6 {[%emt 0:00:21]} 3. Nc3 {[%emt 0:00:22]} Nbd7 {[%emt 0:00:22]} 4. f4 {[%emt 0:00:23]} e5 {[%emt 0:00:22]} 5. Nf3 {[%emt 0:01:09]} exd4 {[%emt 0:00:23]} 6. Nxd4 {[%emt 0:00:29]} g6 {[%emt 0:00:22]} 7. Bc4 {[%emt 0:00:53]} Bg7 {[%emt 0:00:34]} 8. O-O {[%emt 0:00:37]} O-O {[%emt 0:00:26]} 9. f5 {[%emt 0:02:34]} c6 {[%emt 0:04:13]} 10. Kh1 {[%emt 0:02:22]} Ne5 {[%emt 0:01:19]} 11. Bb3 {[%emt 0:01:09]} Nfd7 {[%emt 0:03:28]} 12. h3 {[%emt 0:05:05]} Nc5 {[%emt 0:01:10]} 13. Nf3 {[%emt 0:01:44]} Nxb3 {[%emt 0:05:08]} 14. axb3 {[%emt 0:00:29]} Qe7 {[%emt 0:00:53]} 15. Nxe5 {[%emt 0:03:13]} Bxe5 {[%emt 0:00:30]} 16. Bh6 {[%emt 0:01:33]} Re8 {[%emt 0:00:32]} 17. fxg6 {[%emt 0:00:22]} hxg6 {[%emt 0:00:42]} 18. Qf3 {[%emt 0:00:26]} Be6 {[%emt 0:01:09]} 19. Rad1 {[%emt 0:01:20]} g5 {[%emt 0:01:45]} 20. Qh5 {[%emt 0:01:04]} f6 {[%emt 0:00:44]} 21. h4 {[%emt 0:02:08]} g4 {[%emt 0:01:14]} 22. Ne2 {[%emt 0:02:01]} Qh7 {[%emt 0:02:58]} 23. Rxd6 {[%emt 0:01:05]} Qxe4 {[%emt 0:01:50]} 0-1

[Event "Delancey UK Schools 2019 U18"]
[Site "Daventry"]
[Date "2019.09.24"]
[Round "1.8"]
[White "Cocks, Elliot"]
[Black "Rathbone-Jones, Ifan"]
[Result "1/2-1/2"]
[ECO "B13"]
[WhiteElo "1881"]
[BlackElo "1879"]
[Annotator "NA"]
[PlyCount "139"]
[EventDate "2019.09.24"]
[EventCountry "GBR"]
[SourceTitle "playchess.com"]
[Source "ChessBase"]
[SourceQuality "1"]
[TimeControl "40/5400+30:1800+30"]

1. c4 {[%emt 1:10:14]} c5 {[%emt 1:10:12]} 2. e3 {[%emt 0:00:26]} e6 {[%emt 0:00:25]} 3. d4 {[%emt 0:00:38]} d5 {[%emt 0:00:29]} 4. Nf3 {[%emt 0:00:24]} Nf6 {[%emt 0:00:22]} 5. a3 {[%emt 0:00:22]} cxd4 {[%emt 0:01:19]} 6. exd4 {[%emt 0:00:24]} Bd6 {[%emt 0:00:58]} 7. Nc3 {[%emt 0:00:48]} a6 {[%emt 0:00:33]} 8. c5 {[%emt 0:01:25]} Bc7 {[%emt 0:00:25]} 9. Bg5 {[%emt 0:00:39]} h6 {[%emt 0:02:13]} 10. Bh4 {[%emt 0:00:28]} Bd7 {[%emt 0:01:19]} 11. Be2 {[%emt 0:01:22]} Nc6 {[%emt 0:00:33]} 12. O-O {[%emt 0:01:03]} O-O {[%emt 0:00:22]} 13. b4 {[%emt 0:01:01]} b5 {[%emt 0:01:29]} 14. cxb6 Bxb6 {[%emt 0:00:22]} 15. Na4 {[%emt 0:03:24]} Nxd4 {[%emt 0:02:36]} 16. Nxb6 {[%emt 0:02:17]} Nxe2+ {[%emt 0:00:23]} 17. Qxe2 {[%emt 0:00:29]} Qxb6 {[%emt 0:00:22]} 18. Bxf6 {[%emt 0:01:17]} gxf6 {[%emt 0:00:54]} 19. Qd2 {[%emt 0:00:42]} Kg7 {[%emt 0:01:05]} 20. Rfe1 {[%emt 0:02:22]} Bc6 {[%emt 0:03:53]} 21. Nd4 {[%emt 0:00:45]} Rh8 {[%emt 0:01:14]} 22. Qf4 {[%emt 0:01:35]} Bd7 {[%emt 0:01:15]} 23. Nb3 {[%emt 0:02:33]} Rag8 {[%emt 0:01:20]} 24. Nc5 {[%emt 0:00:30]} Bc8 {[%emt 0:01:26]} 25. Re3 {[%emt 0:02:23]} e5 {[%emt 0:00:40]} 26. Rg3+ {[%emt 0:01:46]} Kh7 {[%emt 0:00:42]} 27. Qf3 {[%emt 0:00:49]} Rxg3 {[%emt 0:00:59]} 28. hxg3 {[%emt 0:00:22]} Rd8 {[%emt 0:00:52]} 29. Rd1 {[%emt 0:00:43]} Qd6 {[%emt 0:01:23]} 30. Ne4 {[%emt 0:01:53]} Qe6 {[%emt 0:01:24]} 31. Nxf6+ {[%emt 0:00:31]} Kh8 {[%emt 0:00:36]} 32. Rxd5 {[%emt 0:01:13]} Rxd5 {[%emt 0:01:16]} 33. Nxd5 {[%emt 0:00:22]} Bb7 {[%emt 0:01:17]} 34. Qf6+ {[%emt 0:00:22]} Qxf6 35. Nxf6 {[%emt 0:00:21]} Kg7 {[%emt 0:00:48]} 36. Ne8+ {[%emt 0:00:23]} Kg6 {[%emt 0:00:44]} 37. f3 {[%emt 0:00:23]} f5 {[%emt 0:00:10]} 38. Nd6 {[%emt 0:00:30]} Bd5 {[%emt 0:00:46]} 39. Nc8 {[%emt 0:00:38]} Kf6 {[%emt 0:01:16]} 40. Nb6 {[%emt 0:00:52]} Bb3 {[%emt 0:00:30]} 41. Nd7+ {[%emt 0:00:03]} Ke7 {[%emt 0:00:23]} 42. Nxe5 {[%emt 0:00:11]} Kd6 {[%emt 0:30:54]} 43. Nd3 {[%emt 0:30:56]} Kc6 {[%emt 0:00:39]} 44. Kf2 {[%emt 0:00:27]} Kb5 {[%emt 0:00:37]} 45. Ke3 {[%emt 0:00:37]} Bc4 {[%emt 0:00:28]} 46. Nc5 {[%emt 0:00:35]} a5 {[%emt 0:00:54]} 47. Kf4 {[%emt 0:01:06]} axb4 {[%emt 0:00:07]} 48. axb4 {[%emt 0:00:22]} Kxb4 {[%emt 0:00:34]} 49. Nb7 {[%emt 0:00:28]} Bf1 {[%emt 0:00:23]} 50. Nd6 {[%emt 0:00:25]} Bxg2 {[%emt 0:00:32]} 51. Nxf5 {[%emt 0:00:22]} h5 {[%emt 0:00:21]} 52. Ng7 {[%emt 0:00:24]} Kc5 {[%emt 0:00:48]} 53. Nxh5 {[%emt 0:00:25]} Kd6 {[%emt 0:00:21]} 54. g4 {[%emt 0:00:24]} Ke6 {[%emt 0:00:37]} 55. Ke4 {[%emt 0:00:31]} Bf1 {[%emt 0:00:42]} 56. g5 {[%emt 0:00:29]} Kf7 {[%emt 0:00:33]} 57. f4 {[%emt 0:00:37]} Bg2+ {[%emt 0:00:23]} 58. Ke3 {[%emt 0:00:48]} Kg6 {[%emt 0:00:22]} 59. Ng3 {[%emt 0:00:22]} Bh3 {[%emt 0:00:25]} 60. Ke4 {[%emt 0:00:55]} Bd7 {[%emt 0:00:33]} 61. Ke5 {[%emt 0:00:24]} Bg4 {[%emt 0:00:41]} 62. Ne4 {[%emt 0:00:22]} Bc8 {[%emt 0:00:35]} 63. Nc5 {[%emt 0:00:28]} Bh3 {[%emt 0:00:26]} 64. Ne6 {[%emt 0:00:24]} Bg4 {[%emt 0:00:33]} 65. Nc7 {[%emt 0:01:07]} Bh3 {[%emt 0:00:33]} 66. Nd5 {[%emt 0:00:23]} Bd7 {[%emt 0:00:29]} 67. Ne7+ {[%emt 0:00:28]} Kf7 {[%emt 0:00:23]} 68. Kd6 {[%emt 0:00:43]} Bh3 {[%emt 0:00:21]} 69. f5 {[%emt 0:00:32]} Bxf5 {[%emt 0:00:22]} 70. Nxf5 {[%emt 0:00:33]} 1/2-1/2